bitfinex/quotes_ETHUSD_20220118
["timestamp","ask_amount","ask_price","bid_price","bid_amount"]
[1642470151584,4.49560035,3225.7,3224.8,0.00397896]
[1642470151585,1.6,3225.6,3224.8,0.00397896]
[1642470151782,2.047,3225.6,3224.8,0.00397896]
[1642470151983,1.047,3225.6,3224.8,0.00397896]
[1642470152282,2.047,3225.6,3224.8,0.00397896]
[1642470153030,0.871,3225.6,3224.8,1.47043735]
[1642470153231,1.871,3225.6,3224.8,1.47043735]
[1642470153433,1.871,3225.6,3224.9,0.00341054]
[1642470153630,0.871,3225.6,3224.9,0.00341054]
[1642470153832,1.871,3225.6,3224.9,0.00341054]
[1642470155235,1.871,3225.6,3224.8,0.00397896]
[1642470155435,2.171,3225.6,3224.8,0.00397896]
[1642470156039,1.56590873,3225.1,3224.8,0.00397896]
[1642470156287,1.26600873,3225.1,3224.8,0.00397896]
[1642470156586,2.22097309,3225.0,3224.8,0.00397896]
[1642470156784,2.23891992,3225.0,3224.8,0.00397896]
[1642470156985,2.847,3224.9,3224.8,0.00397896]
[1642470157186,0.447,3224.9,3224.8,0.00397896]
[1642470157387,0.747,3224.9,3224.8,0.00397896]
[1642470157785,0.447,3224.9,3224.8,0.00397896]
[1642470158187,0.747,3224.9,3224.8,0.00397896]
[1642470158785,0.447,3224.9,3224.8,0.00397896]
[1642470161238,0.1566,3224.9,3224.8,0.00397896]
[1642470161435,4.35738027,3224.9,3224.8,0.00397896]
[1642470162236,4.65738027,3224.9,3224.8,0.00397896]
[1642470162436,4.35738027,3224.9,3224.8,0.00397896]
[1642470162636,4.65738027,3224.9,3224.8,0.00397896]
[1642470163879,4.60738027,3224.9,3224.8,0.00397896]
[1642470165078,3.06203153,3224.9,3224.8,0.00397896]
[1642470165878,4.58158361,3224.9,3224.8,0.00397896]
[1642470166286,4.29088361,3224.9,3224.8,0.00397896]
[1642470167529,4.17498361,3224.9,3224.8,0.00397896]
[1642470168330,4.47498361,3224.9,3224.8,0.00397896]
[1642470168732,4.92198361,3224.9,3224.8,0.00397896]
[1642470171289,4.17498361,3224.9,3224.8,0.00397896]
[1642470171491,2.35713153,3224.9,3224.8,0.00397896]
[1642470173393,1.5063367,3224.9,3224.8,0.00397896]
[1642470173893,1.9533367,3224.9,3224.8,0.00397896]
[1642470175531,0.447,3224.9,3224.8,0.00397896]
[1642470176036,0.747,3224.9,3224.8,0.00397896]
[1642470176838,0.4475,3224.9,3224.8,0.00397896]
[1642470177035,0.447,3224.9,3224.8,0.00397896]
[1642470178237,0.747,3224.9,3224.8,0.00397896]
[1642470178692,1.617,3224.9,3224.8,0.00397896]
[1642470178883,4.667,3224.9,3224.8,0.00397896]
[1642470179083,2.4,3224.8,3224.5,0.05005]
[1642470179282,2.4,3224.8,3224.0,0.124]
[1642470179283,2.7,3224.8,3224.0,0.124]
[1642470179485,0.447,3224.7,3224.6,0.00113685]
[1642470179683,0.747,3224.7,3224.6,0.00113685]
[1642470180483,3.09568056,3224.7,3224.6,0.00113685]
[1642470181488,3.09568056,3224.7,3223.8,0.00568424]
[1642470181686,9.24038056,3224.7,3223.9,0.124]
[1642470181887,6.88059055,3224.7,3223.9,0.124]
[1642470182089,6.88059055,3224.7,3224.0,0.00454739]
[1642470183331,7.18059055,3224.7,3224.0,0.00454739]
[1642470183732,7.18059055,3224.7,3223.8,0.00568424]
[1642470185134,7.18059055,3224.7,3223.9,0.124]
[1642470185533,7.18059055,3224.7,3224.0,0.00454739]
[1642470186182,7.18059055,3224.7,3223.8,0.00568424]
[1642470186379,7.18059055,3224.7,3223.9,0.124]
[1642470186780,6.88599055,3224.7,3224.0,2.81009128]
[1642470187080,6.88599055,3224.7,3224.1,1.87656463]
[1642470187081,6.88059055,3224.7,3224.1,1.87656463]
[1642470187282,6.4383,3224.7,3224.2,0.124]
[1642470187482,6.4383,3224.7,3224.2,0.12741054]
[1642470187681,6.4383,3224.7,3224.3,0.00284212]
[1642470188282,6.0979,3224.8,3224.4,0.02498347]
[1642470188685,6.0979,3224.8,3224.5,0.00170527]
[1642470189083,6.3979,3224.8,3224.3,0.00284212]
[1642470189683,6.40325793,3224.8,3224.3,0.00284212]
[1642470190831,6.40325793,3224.8,3223.8,1.79383532]
[1642470191031,6.40325793,3224.8,3223.8,0.00568424]
[1642470191235,6.40325793,3224.8,3223.9,0.00511582]
[1642470191433,6.40325793,3224.8,3223.8,1.78184257]
[1642470191636,6.40325793,3224.8,3223.8,0.00568424]
[1642470191833,6.11125793,3224.8,3223.9,0.00511582]
[1642470192033,6.10325793,3224.8,3223.8,0.00568424]
[1642470192436,2.65574025,3224.7,3223.8,0.00568424]
[1642470195991,1.49676215,3224.6,3223.8,0.00568424]
[1642470196995,1.19886215,3224.6,3223.8,0.00568424]
[1642470197642,2.65574025,3224.5,3223.8,0.00568424]
[1642470198342,3.8546024,3224.6,3223.8,0.00568424]
[1642470198740,2.65574025,3224.4,3223.8,0.00568424]
[1642470198941,2.65574025,3224.4,3223.7,0.00625266]
[1642470199542,2.65574025,3224.4,3223.7,1.55877768]
[1642470199741,2.65574025,3224.4,3223.8,1.784031]
[1642470199948,2.65574025,3224.4,3223.8,1.78971524]
[1642470200146,2.65574025,3224.4,3223.9,0.00511582]
[1642470200547,1.20422355,3224.6,3223.9,0.00511582]
[1642470201218,2.65574025,3224.5,3223.9,0.00511582]
[1642470201818,2.65574025,3224.5,3223.7,1.79649504]
[1642470202019,2.36484025,3224.5,3223.8,0.00568424]
[1642470202421,2.36484025,3224.5,3223.7,2.80653242]
[1642470202621,2.36484025,3224.5,3223.8,0.00568424]
[1642470207047,2.07374025,3224.5,3223.8,0.00568424]
[1642470207645,1.50695817,3224.6,3223.8,0.00568424]
[1642470208685,0.0053614,3224.6,3223.8,0.00568424]
[1642470210492,0.0053614,3224.6,3223.8,1.4142863]
[1642470210789,0.0053614,3224.6,3223.9,1.79682103]
[1642470210990,0.0053614,3224.6,3224.0,1.27089465]
[1642470211190,0.0053614,3224.6,3224.1,1.83270321]
[1642470211390,0.0053614,3224.6,3224.1,1.83668218]
[1642470211696,0.0053614,3224.6,3224.2,0.00341054]
[1642470212091,1.21385817,3224.7,3224.2,0.00341054]
[1642470212548,4.74464986,3224.8,3224.1,0.00397897]
[1642470212746,4.74464986,3224.8,3224.0,0.00454739]
[1642470212947,4.74464986,3224.8,3224.2,0.00341054]
[1642470213150,4.74464986,3224.8,3223.9,0.00511582]
[1642470214549,4.74464986,3224.8,3224.3,0.00873219]
[1642470214954,4.74464986,3224.8,3224.4,0.0022737]
[1642470216181,0.124,3224.7,3224.4,0.0022737]
[1642470217188,4.57484986,3224.8,3224.4,0.0022737]
[1642470219692,4.59405986,3224.8,3224.5,0.00872511]
[1642470221943,4.57484986,3224.8,3224.5,0.00872511]
[1642470222146,6.08517793,3224.8,3224.5,0.00872511]
[1642470222348,5.78677793,3224.8,3224.5,0.00872511]
[1642470222844,1.51032807,3224.7,3224.5,0.00872511]
[1642470224587,4.27644986,3224.8,3224.4,0.0022737]
[1642470225388,1.51032807,3224.7,3224.4,0.0022737]
[1642470227193,4.16591471,3224.7,3224.4,0.0022737]
[1642470227441,3.87381471,3224.7,3224.4,0.0022737]
[1642470228241,2.65558664,3224.6,3224.4,0.0022737]
[1642470229041,2.02382561,3224.5,3224.4,0.0022737]
[1642470229442,5.94534153,3224.7,3224.4,0.0022737]
[1642470229642,5.94534153,3224.7,3224.5,0.00872241]
[1642470229643,4.72711346,3224.7,3224.5,0.00872241]
[1642470229842,2.00539083,3224.6,3224.5,0.00872241]
[1642470230250,2.00539083,3224.6,3224.5,0.01042768]
[1642470231045,2.34868056,3224.7,3224.5,0.01042768]
[1642470231493,6.991842,3224.8,3224.5,0.01042768]
[1642470231694,4.947,3224.6,3224.5,0.01042768]
[1642470231894,4.96621,3224.6,3224.5,0.01042768]
[1642470232093,6.26621,3224.6,3224.5,0.01042768]
[1642470232492,5.96621,3224.6,3224.5,0.01042768]
[1642470233896,8.07593122,3224.6,3224.5,0.01042768]
[1642470234094,8.37593122,3224.6,3224.5,0.01042768]
[1642470234496,10.72461178,3224.6,3224.5,0.00170527]
[1642470235335,6.22461178,3224.6,3223.7,0.00625266]
[1642470235544,0.01921,3224.5,3223.6,0.01489129]
[1642470235743,0.447,3224.4,3223.6,0.01489129]
[1642470235943,3.14964113,3224.3,3223.6,0.01489129]
[1642470236144,1.447,3224.2,3223.6,0.01489129]
[1642470236343,0.01921,3224.1,3223.6,0.01489129]
[1642470236547,0.447,3224.0,3223.6,0.01489129]
[1642470236943,0.747,3224.0,3223.6,0.01489129]
[1642470237543,0.455,3224.0,3223.6,0.01489129]
[1642470237744,1.50014537,3223.8,3223.6,0.01489129]
[1642470238044,0.447,3223.7,3223.6,0.01489129]
[1642470238445,0.447,3223.7,3223.6,0.02171238]
[1642470241292,1.50014537,3223.9,3223.6,0.02171238]
[1642470241692,1.50014537,3223.9,3223.7,0.00625266]
[1642470242291,12.8284,3224.1,3223.7,0.00625266]
[1642470242537,12.8284,3224.1,3223.7,1.20002339]
[1642470242738,12.531,3224.1,3223.7,1.20002339]
[1642470242937,12.531,3224.1,3223.8,0.00568424]
[1642470243639,12.531,3224.1,3223.7,0.00625266]
[1642470244644,0.00810857,3224.0,3223.7,0.00625266]
[1642470245041,2.66418525,3224.0,3223.7,0.00625266]
[1642470246792,2.65607668,3223.9,3223.7,0.00625266]
[1642470247489,4.15622205,3223.9,3223.7,0.00625266]
[1642470247689,3.86482205,3223.9,3223.7,0.00625266]
[1642470248289,1.50014537,3223.9,3223.7,0.00625266]
[1642470248490,0.00810857,3224.0,3223.7,0.00625266]
[1642470249296,0.00810857,3224.0,3223.7,1.18017627]
[1642470249493,0.00810857,3224.0,3223.7,0.00625266]
[1642470252840,12.82713684,3224.1,3223.7,0.00625266]
[1642470252841,6.39673684,3224.1,3223.7,0.00625266]
[1642470254495,6.39673684,3224.1,3223.8,0.01079789]
[1642470254895,6.39673684,3224.1,3223.9,0.00511582]
[1642470257949,6.09643684,3224.1,3223.9,0.00511582]
[1642470261491,0.29613684,3224.1,3223.9,0.03935117]
[1642470261892,0.29613684,3224.1,3224.0,0.00454739]
[1642470262891,0.29613684,3224.1,3223.9,0.00511582]
[1642470263092,0.00423684,3224.1,3223.9,0.00511582]
[1642470263294,4.41921,3224.0,3223.9,0.00511582]
[1642470263693,0.01921,3224.0,3223.9,0.00511582]
[1642470265149,0.01921,3224.0,3223.6,0.01489129]
[1642470265150,0.01921,3224.0,3223.7,0.00625266]
[1642470265350,1.95138221,3224.1,3223.9,0.00511582]
[1642470265551,1.95138221,3224.1,3223.6,0.01489129]
[1642470265552,1.95138221,3224.1,3223.7,0.00625266]
[1642470266357,2.03809196,3224.0,3223.7,0.00625266]
[1642470266557,1.95138221,3224.1,3223.7,0.00625266]
[1642470266956,3.96395868,3224.1,3223.7,0.00625266]
[1642470267357,1.50014537,3224.0,3223.7,0.00625266]
[1642470267956,1.20944537,3224.0,3223.7,0.00625266]
[1642470268357,2.00589424,3224.0,3223.7,0.00625266]
[1642470268558,2.65626312,3223.9,3223.7,0.00625266]
[1642470269591,4.65592505,3224.0,3223.7,0.00625266]
[1642470269791,2.65626312,3224.0,3223.7,0.00625266]
[1642470270491,2.04344063,3223.9,3223.7,0.00625266]
[1642470270691,4.7263279,3223.9,3223.7,0.00625266]
[1642470270892,2.65626312,3223.9,3223.7,0.00625266]
[1642470271699,2.65626312,3223.8,3223.7,0.00625266]
[1642470272551,2.65626312,3224.0,3223.7,0.00625266]
[1642470273251,2.05006312,3224.0,3223.7,0.00625266]
[1642470276403,2.49706312,3224.0,3223.7,0.00625266]
[1642470278012,0.447,3224.0,3223.7,0.00625266]
[1642470278607,0.4396,3224.0,3223.7,0.00625266]
[1642470278807,1.94438986,3224.0,3223.7,0.00625266]
[1642470279609,1.94438986,3224.0,3223.8,0.00863825]
[1642470280048,1.94438986,3224.0,3223.9,0.00511582]
[1642470282752,1.89438986,3224.0,3223.9,0.00511582]
[1642470283552,1.60458986,3224.0,3223.9,0.00511582]
[1642470284797,0.0998,3224.0,3223.9,0.00511582]
[1642470285896,2.0998,3224.0,3223.9,0.00511582]
[1642470286298,0.0998,3224.0,3223.9,0.00511582]
[1642470286697,2.8498,3224.0,3223.9,0.00511582]
[1642470287943,4.35458986,3224.0,3223.9,0.00511582]
[1642470288446,6.52877167,3224.0,3223.9,0.00511582]
[1642470288644,3.77877167,3224.0,3223.9,0.00511582]
[1642470288850,1.75138986,3224.0,3223.9,0.00511582]
[1642470289049,0.447,3224.0,3223.9,0.00511582]
[1642470293897,0.1529,3224.0,3223.9,0.00511582]
[1642470294098,2.80902602,3224.0,3223.9,0.00511582]
[1642470294949,0.1529,3224.0,3223.9,0.00511582]
[1642470295752,2.80902602,3224.0,3223.9,0.00511582]
[1642470297454,2.80902602,3224.0,3223.2,0.10264536]
[1642470297855,2.80902602,3224.0,3223.3,0.00341054]
[1642470298895,2.65612602,3223.9,3223.3,0.00341054]
[1642470299092,2.35452602,3223.9,3223.3,0.00341054]
[1642470299696,0.00528995,3224.0,3223.3,0.00341054]
[1642470301098,0.00528995,3224.0,3223.9,1.27274954]
[1642470301297,0.00528995,3224.0,3223.9,3.27274954]
[1642470301524,0.00528995,3224.0,3223.9,1.57274954]
[1642470301696,0.00528995,3224.0,3223.9,2.57274954]
[1642470301897,0.00528995,3224.0,3223.9,1.57274954]
[1642470302097,0.00528995,3224.0,3223.7,1.3]
[1642470302298,0.00528995,3224.0,3223.7,0.6]
[1642470302549,0.00528995,3224.0,3223.7,1.0]
[1642470302747,0.00528995,3224.0,3223.6,0.6]
[1642470302949,0.00528995,3224.0,3223.7,0.124]
[1642470303150,0.00528995,3224.0,3223.8,1.39203716]
[1642470303350,0.00528995,3224.0,3223.9,0.124]
[1642470303552,0.00528995,3224.0,3223.9,2.11290361]
[1642470303952,0.00528995,3224.0,3223.9,3.11290361]
[1642470304157,1.22440536,3224.6,3223.9,2.39279496]
[1642470304355,1.22440536,3224.6,3224.1,1.37499417]
[1642470304555,0.00341055,3224.5,3224.1,1.67499417]
[1642470304956,0.00284212,3224.4,3224.1,1.67499417]
[1642470305156,7.38929198,3225.0,3224.1,1.67499417]
[1642470305356,7.38929198,3225.0,3224.1,0.3]
[1642470305557,0.00284212,3224.9,3224.2,0.00113684]
[1642470305957,0.0022737,3224.8,3224.0,0.00227369]
[1642470306396,0.00170527,3224.7,3224.0,0.30227369]
[1642470306596,0.00170527,3224.7,3224.0,1.6093719]
[1642470306798,0.00113685,3224.6,3224.1,0.00170527]
[1642470307996,0.00113685,3224.6,3224.1,0.30170527]
[1642470308396,0.00113685,3224.6,3224.2,0.00113684]
[1642470309197,1.9593549,3224.9,3224.1,0.00170527]
[1642470309399,1.9593549,3224.9,3224.1,0.00284212]
[1642470309597,0.17291641,3224.3,3224.1,0.00284212]
[1642470310849,0.17291641,3224.3,3224.1,0.30284212]
[1642470311151,0.17291641,3224.3,3224.2,0.00227369]
[1642470312753,0.17291641,3224.3,3223.9,0.00397897]
[1642470312954,0.04057,3224.2,3223.9,0.00397897]
[1642470313356,0.04057,3224.2,3223.8,0.00454739]
[1642470313558,2.32981421,3224.3,3223.8,0.00454739]
[1642470314200,2.03801421,3224.3,3223.8,0.00454739]
[1642470314807,1.51333578,3224.4,3224.1,0.00800434]
[1642470315206,1.51333578,3224.2,3224.1,0.00800434]
[1642470315607,1.51333578,3224.2,3224.1,0.01084646]
[1642470316308,2.1056982,3224.4,3224.1,0.01084646]
[1642470316709,2.1056982,3224.4,3224.2,0.00227369]
[1642470317943,2.4056982,3224.4,3224.2,0.00227369]
[1642470318143,2.03093133,3224.3,3224.2,0.00227369]
[1642470318545,3.17533133,3224.3,3224.2,0.00227369]
[1642470319045,3.41689359,3224.3,3224.2,0.00227369]
[1642470319346,3.12559359,3224.3,3224.2,0.00227369]
[1642470320046,3.68212031,3224.3,3224.2,0.00227369]
[1642470323300,3.68212031,3224.3,3223.3,0.08427803]
[1642470323702,3.68212031,3224.3,3223.4,0.00454739]
[1642470324304,3.38812031,3224.3,3223.4,0.00454739]
[1642470324704,1.51339972,3224.1,3223.4,0.01199297]
[1642470325144,0.17291641,3223.8,3223.5,0.00397897]
[1642470326146,0.17291641,3223.8,3223.3,0.3]
[1642470326352,0.17291641,3223.8,3223.4,1.78824427]
[1642470326353,0.00113685,3223.7,3223.4,1.78824427]
[1642470326550,2.65724075,3223.7,3223.4,1.78824427]
[1642470327352,2.65724075,3223.7,3223.3,0.3]
[1642470327353,0.00113685,3223.7,3223.3,0.3]
[1642470327556,0.00113685,3223.7,3223.4,1.78923835]
[1642470328153,2.65724075,3223.7,3223.4,1.78923835]
[1642470328555,2.65724075,3223.7,3223.5,0.124]
[1642470328999,0.00113685,3223.7,3223.5,0.124]
[1642470329398,4.05165688,3224.1,3223.5,0.124]
[1642470329800,0.00170527,3224.0,3223.5,0.124]
[1642470330203,0.00113684,3223.9,3223.5,0.124]
[1642470330401,2.6561039,3223.7,3223.5,0.124]
[1642470331507,0.00113684,3223.9,3223.5,0.124]
[1642470332307,2.6561039,3223.6,3223.5,0.124]
[1642470332553,2.6561039,3223.6,3223.5,1.90452972]
[1642470332757,2.6561039,3223.6,3223.5,2.20566657]
[1642470332955,0.00113684,3223.9,3223.5,3.20566657]
[1642470334458,2.36394074,3224.5,3223.5,3.20566657]
[1642470334661,2.36394074,3224.5,3224.1,1.20271728]
[1642470334859,0.00284212,3224.4,3224.1,1.20271728]
[1642470335263,0.0022737,3224.3,3224.1,1.20271728]
[1642470335659,0.00170528,3224.2,3224.1,3.03049331]
[1642470336061,0.00170528,3224.2,3224.1,1.20271728]
[1642470339406,1.2276355,3224.4,3224.1,1.20271728]
[1642470339607,1.2276355,3224.4,3223.7,1.6]
[1642470339807,1.2276355,3224.4,3223.8,1.82914572]
[1642470340052,1.2276355,3224.4,3223.8,1.83141942]
[1642470340249,1.2276355,3224.4,3223.9,0.00170528]
[1642470340649,1.2276355,3224.4,3223.8,0.0022737]
[1642470341148,1.2276355,3224.4,3223.7,0.00284212]
[1642470341552,1.2276355,3224.4,3223.7,1.00284212]
[1642470341953,1.2276355,3224.4,3223.8,0.0022737]
[1642470342355,1.2276355,3224.4,3223.7,0.00284212]
[1642470342755,2.27249359,3224.6,3223.7,0.00284212]
[1642470343155,0.00170527,3224.5,3223.7,0.00284212]
[1642470343556,0.00113684,3224.4,3223.7,0.00284212]
[1642470344606,1.97593043,3224.6,3223.7,0.00284212]
[1642470344810,1.97593043,3224.6,3223.7,0.00397896]
[1642470345208,1.2006,3224.7,3223.7,0.00397896]
[1642470345611,0.00113685,3224.6,3223.7,0.00397896]
[1642470346215,2.09734471,3224.6,3223.7,0.00397896]
[1642470346815,0.124,3224.5,3223.7,0.00397896]
[1642470347018,0.124,3224.5,3223.8,0.01616211]
[1642470347469,1.124,3224.5,3223.9,0.00284212]
[1642470347969,1.124,3224.5,3223.4,1.1473]
[1642470347970,2.00351994,3224.4,3223.4,1.1473]
[1642470348170,0.124,3224.3,3223.4,1.1473]
[1642470348370,0.1262737,3224.3,3223.5,0.00227369]
[1642470348568,0.00170528,3224.2,3223.5,0.00227369]
[1642470348768,0.00170528,3224.2,3223.1,4.28427737]
[1642470348769,0.00170528,3224.2,3223.3,0.00341054]
[1642470348970,0.00113685,3224.1,3223.2,1.00397896]
[1642470349171,1.52634903,3224.1,3223.3,0.00341054]
[1642470349372,1.52521218,3224.1,3223.3,0.00341054]
[1642470349773,1.22631218,3224.1,3223.3,0.00341054]
[1642470350574,1.22631218,3224.1,3223.3,0.60341054]
[1642470350976,1.22631218,3224.1,3223.4,0.00284211]
[1642470353414,0.00170528,3224.2,3223.4,0.00284211]
[1642470353810,0.00113685,3224.1,3223.4,0.00284211]
[1642470354211,0.00170528,3224.2,3223.4,0.00284211]
[1642470354614,1.3126,3224.3,3223.4,0.00284211]
[1642470354615,0.00113685,3224.1,3223.4,0.00284211]
[1642470354811,1.02153685,3224.3,3223.4,0.00284211]
[1642470355048,1.02153685,3224.3,3223.4,0.00397896]
[1642470355654,2.65612517,3224.2,3223.4,0.00397896]
[1642470357256,2.65612517,3224.2,3223.9,1.37047129]
[1642470357656,2.65612517,3224.2,3224.0,0.124]
[1642470358355,2.65612517,3224.2,3223.7,1.21327039]
[1642470358559,2.65612517,3224.2,3223.7,1.81327039]
[1642470358802,2.65612517,3224.2,3223.8,0.00170527]
[1642470359204,2.65612517,3224.3,3223.8,0.00170527]
[1642470359501,2.65612517,3224.3,3223.8,1.51492627]
[1642470359502,2.65726202,3224.3,3223.8,1.51492627]
[1642470359704,1.52107718,3224.8,3223.9,2.124]
[1642470359904,1.52107718,3224.8,3224.2,0.01217326]
[1642470359905,1.22667718,3224.8,3224.2,0.01217326]
[1642470360108,0.00227369,3224.7,3224.2,0.01217326]
[1642470360308,0.00227369,3224.7,3224.2,2.01217326]
[1642470360510,1.22667718,3224.8,3224.2,0.31217326]
[1642470360511,0.00170527,3224.6,3224.2,0.31217326]
[1642470360709,0.00170527,3224.6,3224.3,1.09824025]
[1642470360908,0.00113685,3224.5,3224.4,3.724]
[1642470361113,0.00113685,3224.5,3224.4,4.724]
[1642470361308,0.00113685,3224.5,3224.4,5.024]
[1642470361509,0.00113685,3224.5,3224.4,5.3083]
[1642470361908,0.00113685,3224.5,3224.4,7.25323811]
[1642470364148,0.00113685,3224.5,3224.4,6.96893811]
[1642470364549,0.00113685,3224.5,3224.4,6.97698107]
[1642470364952,4.49553685,3225.3,3224.5,3.4]
[1642470365150,4.49553685,3225.3,3224.6,3.07162162]
[1642470365352,0.00397896,3225.2,3224.6,3.37162162]
[1642470365550,0.00397896,3225.2,3225.1,1.62852669]
[1642470365751,2.28455698,3225.5,3225.1,1.62852669]
[1642470366203,0.00511581,3225.4,3225.1,1.62852669]
[1642470366702,0.00454738,3225.3,3225.1,1.62852669]
[1642470367105,0.00397896,3225.2,3225.1,1.62852669]
[1642470367906,0.00397896,3225.2,3224.8,1.16720568]
[1642470368108,0.00397896,3225.2,3224.8,0.3]
[1642470368308,0.00341054,3225.1,3224.6,1.3]
[1642470368508,0.00341054,3225.1,3224.5,2.40703624]
[1642470368708,0.00284211,3225.0,3224.5,3.43158705]
[1642470368910,0.00284211,3225.0,3224.5,2.43158705]
[1642470369108,0.00227369,3224.9,3224.6,1.56053915]
[1642470369308,0.00227369,3224.9,3224.7,1.78170731]
[1642470369508,0.00170527,3224.8,3224.7,2.38170731]
[1642470369947,0.00284211,3224.8,3224.7,1.6]
[1642470370149,1.23325307,3225.1,3224.7,3.37604953]
[1642470370447,1.23325307,3225.1,3224.8,0.00113684]
[1642470371050,2.28455698,3225.4,3224.8,0.00113684]
[1642470371455,0.00170527,3225.3,3224.8,0.00113684]
[1642470371854,0.00113685,3225.2,3224.8,0.00113684]
[1642470372154,2.0022737,3225.4,3224.8,0.00113684]
[1642470372357,0.0022737,3225.4,3224.8,0.00113684]
[1642470372556,2.28683068,3225.4,3224.8,0.00113684]
[1642470372758,2.28683068,3225.4,3224.3,0.00397896]
[1642470372957,0.447,3225.3,3224.3,0.00397896]
[1642470373257,2.28455698,3225.1,3224.3,0.00397896]
[1642470373457,1.178,3225.0,3224.3,0.00397896]
[1642470373713,7.4443,3225.0,3224.3,0.00397896]
[1642470373908,7.4443,3225.0,3224.3,1.44398241]
[1642470374307,7.4443,3225.0,3224.4,0.00341054]
[1642470374508,9.55137901,3225.0,3224.4,0.00341054]
[1642470374707,11.83593599,3225.0,3224.2,0.00454738]
[1642470374907,2.07738515,3224.9,3224.2,0.00454738]
[1642470375113,1.78778515,3224.9,3223.8,0.30682108]
[1642470375313,1.78778515,3224.9,3223.9,1.11858216]
[1642470375513,1.78778515,3224.9,3223.9,0.30625266]
[1642470375713,1.78778515,3224.9,3224.0,0.00568423]
[1642470376113,4.30483189,3224.9,3224.0,0.30568423]
[1642470376313,2.28455698,3224.9,3224.0,0.30568423]
[1642470376514,2.28455698,3224.9,3224.1,0.00511581]
[1642470376715,2.28455698,3224.9,3224.2,1.20865646]
[1642470376914,2.28455698,3224.9,3224.1,0.00511581]
[1642470377214,4.37587958,3224.9,3223.8,0.00682108]
[1642470378453,2.0913226,3224.9,3223.8,0.00682108]
[1642470378652,3.0913226,3224.9,3223.8,0.00682108]
[1642470378852,3.0913226,3224.9,3223.6,0.00795793]
[1642470379052,3.0913226,3224.9,3223.6,1.1443217]
[1642470379255,2.28455698,3224.6,3223.6,1.1443217]
[1642470379454,2.28455698,3224.6,3223.7,0.0073895]
[1642470380052,1.99395698,3224.6,3223.7,0.0073895]
[1642470380854,1.52733278,3224.4,3223.7,0.0073895]
[1642470381505,2.03219761,3224.5,3223.7,0.0073895]
[1642470381506,2.03523035,3224.5,3223.7,0.0073895]
[1642470381706,2.03523035,3224.5,3223.6,0.00795793]
[1642470382205,2.89216383,3224.6,3223.5,0.00852635]
[1642470383106,2.89216383,3224.6,3223.6,1.93383012]
[1642470383310,1.52733278,3224.3,3223.6,1.93383012]
[1642470383506,1.52733278,3224.3,3223.7,0.0073895]
[1642470384307,1.36483105,3224.6,3223.7,0.0073895]
[1642470384308,4.18321947,3224.5,3223.7,0.0073895]
[1642470384710,0.00359089,3224.3,3223.7,0.0073895]
[1642470385352,0.00359089,3224.3,3223.4,1.724]
[1642470385353,1.23092367,3224.4,3223.5,1.53301928]
[1642470385759,1.23092367,3224.4,3223.6,0.00795793]
[1642470386357,3.88681036,3224.4,3223.6,0.00795793]
[1642470386958,1.3656168,3224.4,3223.6,0.00795793]
[1642470387957,2.65588669,3224.3,3223.6,0.00795793]
[1642470389303,2.65588669,3224.3,3223.5,0.00852635]
[1642470390107,2.65588669,3224.3,3223.5,0.30852635]
[1642470390506,2.35608669,3224.3,3223.6,0.00795793]
[1642470390808,2.35608669,3224.3,3223.4,1.724]
[1642470390809,2.12486563,3224.2,3223.5,0.00852635]
[1642470391006,1.2095,3224.3,3223.5,0.00852635]
[1642470391305,2.22479368,3224.2,3223.5,0.00852635]
[1642470392105,3.22479368,3224.2,3223.5,0.00852635]
[1642470392553,1.0,3224.2,3223.5,0.00852635]
[1642470392751,3.06073494,3224.2,3223.5,0.00852635]
[1642470393151,5.35756632,3224.2,3223.5,0.00852635]
[1642470393753,5.65756632,3224.2,3223.5,0.00852635]
[1642470393954,2.29683138,3224.1,3223.5,0.00852635]
[1642470394252,3.29683138,3224.1,3223.5,0.00852635]
[1642470394453,2.54182453,3224.0,3223.5,0.00852635]
[1642470394653,1.0,3223.9,3223.5,0.00852635]
[1642470394855,2.80689222,3223.8,3223.5,0.00852635]
[1642470395053,1.0,3223.7,3223.5,0.00852635]
[1642470395253,2.55128571,3223.6,3223.5,0.00852635]
[1642470395653,2.25358571,3223.6,3223.5,0.00852635]
[1642470395853,0.447,3223.6,3223.5,0.00852635]
[1642470396607,2.48024287,3223.6,3223.5,0.00852635]
[1642470396808,0.447,3223.6,3223.5,0.00852635]
[1642470397008,1.98346886,3223.6,3223.5,0.00852635]
[1642470397410,4.00655615,3223.6,3223.5,0.00852635]
[1642470398510,0.447,3223.6,3223.5,0.00852635]
[1642470399209,0.447,3223.6,3223.2,0.01023162]
[1642470400849,0.1461,3223.6,3223.2,0.01023162]
[1642470402352,2.18938561,3223.6,3223.2,0.01023162]
[1642470402752,2.19585643,3223.6,3223.2,0.01023162]
[1642470403354,3.57670862,3223.6,3223.2,0.01023162]
[1642470403804,1.0,3223.3,3223.2,0.01023162]
[1642470404006,2.19585643,3223.6,3223.2,0.01023162]
[1642470404404,2.53646886,3223.5,3223.2,0.01023162]
[1642470405005,1.53646886,3223.5,3223.2,0.01023162]
[1642470405206,1.0,3223.3,3223.2,0.01023162]
[1642470405404,4.71510113,3223.4,3223.2,0.01023162]
[1642470405703,1.0,3223.3,3223.2,0.01023162]
[1642470405905,1.53646886,3223.4,3223.2,0.01023162]
[1642470406103,1.23396886,3223.4,3223.2,0.01023162]
[1642470406308,2.44293138,3223.6,3223.2,0.01023162]
[1642470406508,0.1461,3223.6,3223.2,0.01023162]
[1642470407450,2.20782839,3223.6,3223.2,0.01023162]
[1642470409055,0.1461,3223.6,3223.2,0.01023162]
[1642470410957,2.65637347,3223.5,3223.2,0.01023162]
[1642470411213,2.35997347,3223.5,3223.2,0.01023162]
[1642470411609,1.0,3223.7,3223.2,0.01023162]
[1642470411809,3.22548852,3223.8,3223.2,0.01023162]
[1642470412309,1.0,3223.7,3223.2,0.01023162]
[1642470412510,2.04697286,3223.6,3223.2,0.01023162]
[1642470413110,1.0,3223.7,3223.2,0.01023162]
[1642470413610,2.4968,3223.8,3223.2,0.01023162]
[1642470413810,2.29683138,3223.6,3223.2,0.01023162]
[1642470414817,3.29683138,3223.7,3223.2,0.01023162]
[1642470415253,2.09778085,3223.6,3223.2,0.01023162]
[1642470415854,3.29683138,3223.7,3223.2,0.01023162]
[1642470416058,1.53118926,3223.4,3223.2,0.01023162]
[1642470416259,1.23788926,3223.4,3223.2,0.01023162]
[1642470417059,1.0,3223.5,3223.2,0.01023162]
[1642470417259,1.0,3223.6,3223.2,0.01023162]
[1642470417460,3.74383138,3223.7,3223.2,0.01023162]
[1642470418359,1.447,3223.7,3223.2,0.01023162]
[1642470418818,1.747,3223.7,3223.2,0.01023162]
[1642470419819,1.76679022,3223.7,3223.2,0.01023162]